fUST/lending_fUST_20250220
["ID","MTS","AMOUNT","RATE_DAILY","PERIOD"]
[353758815,1740013856229,-500.0,0.00014602,2]
[353758816,1740013856238,-720.36,0.00014602,2]
[353758817,1740013856249,-6999.65,0.00014602,2]
[353758818,1740013856259,-500.0,0.00014602,2]
[353758819,1740013856269,-504.63,0.00014602,2]
[353758820,1740013856280,-609.45,0.00014602,2]
[353758821,1740013856290,-1837.95,0.00014602,2]
[353758822,1740013856301,-1607.47,0.00014602,2]
[353758823,1740013856311,-580.19,0.00014602,2]
[353758824,1740013856321,-1981.68,0.00014602,2]
[353758825,1740013856331,-500.0,0.00014602,2]
[353758826,1740013856341,-5345.53,0.00014602,2]
[353758827,1740013856351,-938.87,0.00014602,2]
[353758828,1740013856360,-1049.77,0.00014602,2]
[353758829,1740013856370,-500.0,0.00014602,2]
[353758830,1740013856378,-500.0,0.00014602,2]
[353758831,1740013856388,-13275.53870192,0.00014611,2]
[353758832,1740013856398,-807.958279,0.00014643,2]
[353758833,1740013856407,-807.958279,0.00014643,2]
[353758834,1740013856417,-627.264385,0.00014643,2]
[353758835,1740013856428,-627.264385,0.00014643,2]
[353758836,1740013856438,-1167.085957,0.00014643,2]
[353758837,1740013856448,-1167.085957,0.00014643,2]
[353758838,1740013856457,-235835.80801724,0.00014672,5]
[353758839,1740013856468,-25608.40596688,0.00014672,5]
[353758840,1740013856478,-500.0,0.00014673,2]
[353758841,1740013856489,-331.98758965,0.00014673,2]
[353758842,1740013856499,-500.0,0.00014673,2]
[353758843,1740013856509,-500.0,0.00014673,2]
[353758844,1740013856521,-184.97113629,0.00014673,2]
[353758845,1740013856532,-500.00643651,0.00014673,2]
[353758846,1740013856542,-153.0,0.00014674,2]
[353758847,1740013856553,-500.0,0.00014684,2]
[353758848,1740013856564,-500.0,0.00014684,2]
[353758849,1740013856575,-500.0,0.00014684,2]
[353758850,1740013856586,-636.42,0.00014684,2]
[353758851,1740013856595,-500.0,0.00014684,2]
[353758852,1740013856605,-500.0,0.00014684,2]
[353758853,1740013856615,-500.0,0.00014684,2]
[353758854,1740013856627,-17094.74,0.00014684,2]
[353758855,1740013856644,-582.87,0.00014684,2]
[353758856,1740013856661,-565.46,0.00014684,2]
[353758857,1740013856672,-500.0,0.00014684,2]
[353758858,1740013856684,-620.06,0.00014684,2]
[353758859,1740013856695,-500.0,0.00014684,2]
[353758860,1740013856704,-935.39,0.00014684,2]
[353758861,1740013856714,-786.27,0.00014684,2]
[353758862,1740013856724,-1339.64,0.00014684,2]
[353758863,1740013856734,-2415.0,0.00014684,2]
[353758864,1740013856744,-1594.37,0.00014684,2]
[353758865,1740013856754,-838.74,0.00014684,2]
[353758866,1740013856763,-500.0,0.00014684,2]
[353758867,1740013856775,-1322.35,0.00014684,2]
[353758868,1740013856786,-500.0,0.00014684,2]
[353758869,1740013856796,-739.3,0.00014684,2]
[353758870,1740013856807,-328.06384719,0.00014684,2]
[353758871,1740013856817,-720.36,0.00014684,2]
[353758872,1740013856827,-6999.65,0.00014684,2]
[353758873,1740013856837,-500.0,0.00014684,2]
[353758874,1740013856847,-504.63,0.00014684,2]
[353758875,1740013856857,-609.45,0.00014684,2]
[353758876,1740013856867,-1837.95,0.00014684,2]
[353758877,1740013856877,-1607.47,0.00014684,2]
[353758878,1740013856887,-580.19,0.00014684,2]
[353758879,1740013856898,-1981.68,0.00014684,2]
[353758880,1740013856908,-5345.53,0.00014684,2]
[353758881,1740013856918,-938.87,0.00014684,2]
[353758882,1740013856928,-1049.77,0.00014684,2]
[353758883,1740013856938,-500.0,0.00014684,2]
[353758884,1740013856947,-500.0,0.00014684,2]
[353758885,1740013856958,-151.0,0.000147,2]
[353758886,1740013856968,-1209.111,0.0001475,2]
[353758887,1740013856977,-172.025,0.0001475,2]
[353758888,1740013856987,-500.0,0.00014767,2]
[353758889,1740013856996,-500.0,0.00014767,2]
[353758890,1740013857006,-633.92,0.00014767,2]
[353758891,1740013857015,-636.42,0.00014767,2]
[353758892,1740013857027,-500.0,0.00014767,2]
[353758893,1740013857037,-286.37,0.00014767,2]
[353758894,1740013857047,-180.44,0.00014767,2]
[353758895,1740013857057,-17094.74,0.00014767,2]
[353758896,1740013857067,-582.87,0.00014767,2]
[353758897,1740013857077,-565.46,0.00014767,2]
[353758898,1740013857087,-500.0,0.00014767,2]
[353758899,1740013857097,-620.06,0.00014767,2]
[353758900,1740013857107,-500.0,0.00014767,2]
[353758901,1740013857116,-935.39,0.00014767,2]
[353758902,1740013857126,-786.27,0.00014767,2]
[353758903,1740013857136,-1339.64,0.00014767,2]
[353758904,1740013857146,-2415.0,0.00014767,2]
[353758905,1740013857155,-1594.37,0.00014767,2]
[353758906,1740013857165,-838.74,0.00014767,2]
[353758907,1740013857174,-500.0,0.00014767,2]
[353758908,1740013857183,-1322.35,0.00014767,2]
[353758909,1740013857193,-500.0,0.00014767,2]
[353758910,1740013857203,-739.3,0.00014767,2]
[353758911,1740013857215,-175.386186,0.00014767,2]
[353758912,1740013857225,-720.36,0.00014767,2]
[353758913,1740013857234,-6999.65,0.00014767,2]
[353758914,1740013857244,-500.0,0.00014767,2]
[353758915,1740013857253,-504.63,0.00014767,2]
[353758916,1740013857263,-609.45,0.00014767,2]
[353758917,1740013857273,-1837.95,0.00014767,2]
[353758918,1740013857283,-151.0,0.00014767,2]
[353758919,1740013857293,-1607.47,0.00014767,2]
[353758920,1740013857303,-1022.629881,0.00014767,2]
[353758921,1740013857313,-1022.629881,0.00014767,2]
[353758922,1740013857323,-580.19,0.00014767,2]
[353758923,1740013857333,-1981.68,0.00014767,2]
[353758924,1740013857343,-196.366296,0.00014767,2]
[353758925,1740013857353,-196.366296,0.00014767,2]
[353758926,1740013857363,-5345.53,0.00014767,2]
[353758927,1740013857373,-938.87,0.00014767,2]
[353758928,1740013857382,-1049.77,0.00014767,2]
[353758929,1740013857392,-500.0,0.00014767,2]
[353758930,1740013857402,-500.0,0.00014767,2]
[353758931,1740013857412,-663.25779959,0.0001479,2]
[353758932,1740013857422,-1000.0,0.00014795,2]
[353758933,1740013857432,-151.0,0.000148,2]
[353758934,1740013857443,-151.0,0.000148,2]
[353758935,1740013857453,-200.0,0.000148,15]
[353758936,1740013857463,-327.766363,0.000148,2]
[353758937,1740013857473,-327.766363,0.000148,2]
[353758938,1740013857482,-151.0,0.000148,2]
[353758939,1740013857492,-450.0,0.000148,2]
[353758940,1740013857502,-450.0,0.000148,2]
[353758941,1740013857511,-151.0,0.000148,2]
[353758942,1740013857522,-4040.729746,0.000148,2]
[353758943,1740013857532,-977.592803,0.000148,2]
[353758944,1740013857541,-4040.729746,0.000148,2]
[353758945,1740013857551,-151.0,0.000148,2]
[353758946,1740013857561,-977.592803,0.000148,2]
[353758947,1740013857571,-251.537168,0.000148,2]
[353758948,1740013857581,-251.537168,0.000148,2]
[353758949,1740013857591,-1352.71955,0.000148,2]
[353758950,1740013857600,-30564.0889166,0.000148,2]
[353758951,1740013857609,-1352.71955,0.000148,2]
[353758952,1740013857618,-151.0,0.000148,2]
[353758953,1740013857627,-537.887263,0.000148,2]
[353758954,1740013857636,-537.887263,0.000148,2]
[353758955,1740013857646,-200.0,0.000148,4]
[353758956,1740013857657,-200.0,0.000148,4]
[353758957,1740013857666,-200.0,0.000148,4]
[353758958,1740013857677,-200.0,0.000148,3]
[353758959,1740013857687,-200.0,0.000148,5]
[353758960,1740013857696,-200.0,0.000148,3]
[353758961,1740013857706,-200.0,0.000148,5]
[353758962,1740013857715,-1000.0,0.000148,5]
[353758963,1740013857725,-206.3297401,0.00014849,2]
[353758964,1740013857734,-500.0,0.00014849,2]
[353758965,1740013857744,-636.42,0.00014849,2]
[353758966,1740013857755,-500.0,0.00014849,2]
[353758967,1740013857765,-151.0,0.00014849,2]
[353758968,1740013857775,-2490.844069,0.00014849,2]
[353758969,1740013857785,-2490.844069,0.00014849,2]
[353758970,1740013857795,-17094.74,0.00014849,2]
[353758971,1740013857804,-582.87,0.00014849,2]
[353758972,1740013857814,-565.46,0.00014849,2]
[353758973,1740013857823,-500.0,0.00014849,2]
[353758974,1740013857833,-620.06,0.00014849,2]
[353758975,1740013857842,-500.0,0.00014849,2]
[353758976,1740013857852,-935.39,0.00014849,2]
[353758977,1740013857861,-786.27,0.00014849,2]
[353758978,1740013857870,-1339.64,0.00014849,2]
[353758979,1740013857879,-2415.0,0.00014849,2]
[353758980,1740013857888,-1594.37,0.00014849,2]
[353758981,1740013857898,-2541.082803,0.00014849,2]
[353758982,1740013857907,-838.74,0.00014849,2]
[353758983,1740013857917,-2541.082803,0.00014849,2]
[353758984,1740013857926,-500.0,0.00014849,2]
[353758985,1740013857935,-1322.35,0.00014849,2]
[353758986,1740013857945,-500.0,0.00014849,2]
[353758987,1740013857955,-739.3,0.00014849,2]
[353758988,1740013857964,-720.36,0.00014849,2]
[353758989,1740013857973,-6999.65,0.00014849,2]
[353758990,1740013857983,-500.0,0.00014849,2]
[353758991,1740013857993,-504.63,0.00014849,2]
[353758992,1740013858002,-609.45,0.00014849,2]
[353758993,1740013858011,-1837.95,0.00014849,2]
[353758994,1740013858021,-1607.47,0.00014849,2]
[353758995,1740013858031,-580.19,0.00014849,2]
[353758996,1740013858040,-1981.68,0.00014849,2]
[353758997,1740013858049,-5345.53,0.00014849,2]
[353758998,1740013858059,-938.87,0.00014849,2]
[353758999,1740013858068,-1049.77,0.00014849,2]
[353759000,1740013858077,-500.0,0.00014849,2]
[353759001,1740013858087,-500.0,0.00014849,2]
[353759002,1740013858096,-1000.0,0.0001485,2]
[353759003,1740013858105,-500.0,0.00014873,2]
[353759004,1740013858115,-500.0,0.00014873,2]
[353759005,1740013858124,-182544.8334806,0.0001489,2]
[353759006,1740013858133,-1391.96241,0.0001489,2]
[353759007,1740013858142,-1391.96241,0.0001489,2]
[353759008,1740013858151,-151.0,0.0001489,2]
[353759009,1740013858161,-857.48366,0.0001489,2]
[353759010,1740013858170,-151.0,0.0001489,2]
[353759011,1740013858180,-857.48366,0.0001489,2]
[353759012,1740013858189,-519.17707,0.0001489,2]
[353759013,1740013858199,-519.17707,0.0001489,2]
[353759014,1740013858208,-379.20285,0.0001489,2]
[353759015,1740013858218,-379.20285,0.0001489,2]
[353759016,1740013858229,-1049.066856,0.0001489,2]
[353759017,1740013858239,-1049.066856,0.0001489,2]
[353759018,1740013858249,-691.309199,0.0001489,2]
[353759019,1740013858259,-691.309199,0.0001489,2]
[353759020,1740013858271,-807.958279,0.0001489,2]
[353759021,1740013858280,-807.958279,0.0001489,2]
[353759022,1740013858290,-627.264385,0.0001489,2]
[353759023,1740013858300,-627.264385,0.0001489,2]
[353759024,1740013858310,-1167.085957,0.0001489,2]
[353759025,1740013858319,-1167.085957,0.0001489,2]
[353759026,1740013858329,-151.0,0.0001489,2]
[353759027,1740013858339,-1022.629881,0.0001489,2]
[353759028,1740013858349,-1022.629881,0.0001489,2]
[353759029,1740013858359,-196.366296,0.0001489,2]
[353759030,1740013858368,-196.366296,0.0001489,2]
[353759031,1740013858378,-388.09662,0.00014891,2]
[353759032,1740013858388,-388.09662,0.00014891,2]
[353759033,1740013858398,-151.0,0.00014891,2]
[353759034,1740013858408,-170.715689,0.00014891,2]
[353759035,1740013858418,-170.715689,0.00014891,2]
[353759036,1740013858428,-591.546905,0.00014891,2]
[353759037,1740013858438,-591.546905,0.00014891,2]
[353759038,1740013858448,-151.0,0.00014891,2]
[353759039,1740013858458,-4040.729746,0.00014891,2]
[353759040,1740013858468,-977.592803,0.00014891,2]
[353759041,1740013858478,-4040.729746,0.00014891,2]
[353759042,1740013858488,-151.0,0.00014891,2]
[353759043,1740013858498,-977.592803,0.00014891,2]
[353759044,1740013858508,-251.537168,0.00014891,2]
[353759045,1740013858518,-251.537168,0.00014891,2]
[353759046,1740013858529,-1352.71955,0.00014891,2]
[353759047,1740013858538,-1352.71955,0.00014891,2]
[353759048,1740013858549,-151.0,0.00014891,2]
[353759049,1740013858558,-537.887263,0.00014891,2]
[353759050,1740013858568,-537.887263,0.00014891,2]
[353759051,1740013858577,-160.0,0.00014899,2]
[353759052,1740013858587,-343.6134656,0.00014899,2]
[353759053,1740013858597,-151.0,0.00014899,2]
[353759054,1740013858606,-151.0,0.00014899,2]
[353759055,1740013858721,-4040.729746,0.00014899,2]
[353759056,1740013858733,-2490.844069,0.00014899,2]
[353759057,1740013858743,-977.592803,0.00014899,2]
[353759058,1740013858756,-4040.729746,0.00014899,2]
[353759059,1740013858766,-151.0,0.00014899,2]
[353759060,1740013858777,-2490.844069,0.00014899,2]
[353759061,1740013858787,-977.592803,0.00014899,2]
[353759062,1740013858797,-251.537168,0.00014899,2]
[353759063,1740013858807,-251.537168,0.00014899,2]
[353759064,1740013858817,-1352.71955,0.00014899,2]
[353759065,1740013858827,-1352.71955,0.00014899,2]
[353759066,1740013858837,-151.0,0.00014899,2]
[353759067,1740013858846,-537.887263,0.00014899,2]
[353759068,1740013858857,-537.887263,0.00014899,2]
[353759069,1740013858867,-151.0,0.00014899,2]
[353759070,1740013858877,-1022.629881,0.00014899,2]
[353759071,1740013858887,-1022.629881,0.00014899,2]
[353759072,1740013858898,-196.366296,0.00014899,2]
[353759073,1740013858908,-196.366296,0.00014899,2]
[353759074,1740013858918,-201.63348696,0.000149,2]
[353759075,1740013858928,-166.0,0.000149,2]
[353759076,1740013858939,-166.0,0.000149,2]
[353759077,1740013858949,-259.39,0.000149,2]
[353759078,1740013858959,-204.66108231,0.000149,2]
[353759079,1740013858970,-349.0,0.000149,2]
[353759080,1740013858980,-314.0,0.000149,2]
[353759081,1740013858991,-349.0,0.000149,2]
[353759082,1740013859001,-314.0,0.000149,2]
[353759083,1740013859011,-349.0,0.000149,2]
[353759084,1740013859021,-314.0,0.000149,2]
[353759085,1740013859030,-349.0,0.000149,2]
[353759086,1740013859040,-314.0,0.000149,2]
[353759087,1740013859050,-217.11643488,0.000149,2]
[353759088,1740013859059,-314.0,0.000149,2]
[353759089,1740013859068,-314.0,0.000149,2]
[353759090,1740013859077,-314.0,0.000149,2]
[353759091,1740013859087,-314.0,0.000149,2]
[353759092,1740013859096,-314.0,0.000149,2]
[353759093,1740013859106,-314.0,0.000149,2]
[353759094,1740013859115,-314.0,0.000149,2]
[353759095,1740013859125,-314.0,0.000149,2]
[353759096,1740013859135,-314.0,0.000149,2]
[353759097,1740013859144,-314.0,0.000149,2]
[353759098,1740013859154,-314.0,0.000149,2]
[353759099,1740013859163,-314.0,0.000149,2]
[353759100,1740013859173,-201.80223506,0.000149,2]
[353759101,1740013859182,-789.616638,0.000149,2]
[353759102,1740013859191,-789.616638,0.000149,2]
[353759103,1740013859200,-789.616638,0.000149,2]
[353759104,1740013859210,-789.616638,0.000149,2]
[353759105,1740013859219,-163.67464,0.000149,2]
[353759106,1740013859230,-151.0,0.000149,2]
[353759107,1740013859239,-151.0,0.000149,2]
[353759108,1740013859249,-151.0,0.000149,2]
[353759109,1740013859259,-151.0,0.000149,2]
[353759110,1740013859270,-151.0,0.000149,2]
[353759111,1740013859279,-151.0,0.000149,2]
[353759112,1740013859289,-153.977227,0.000149,2]
[353759113,1740013859299,-388.09662,0.000149,2]
[353759114,1740013859309,-388.09662,0.000149,2]
[353759115,1740013859319,-388.09662,0.000149,2]
[353759116,1740013859328,-388.09662,0.000149,2]
[353759117,1740013859338,-176.052147,0.000149,2]
[353759118,1740013859347,-170.715689,0.000149,2]
[353759119,1740013859357,-170.715689,0.000149,2]
[353759120,1740013859367,-170.715689,0.000149,2]
[353759121,1740013859377,-170.715689,0.000149,2]
[353759122,1740013859386,-200.0,0.000149,15]
[353759123,1740013859396,-200.0,0.000149,15]
[353759124,1740013859407,-327.766363,0.000149,2]
[353759125,1740013859417,-327.766363,0.000149,2]
[353759126,1740013859426,-327.766363,0.000149,2]
[353759127,1740013859436,-327.766363,0.000149,2]
[353759128,1740013859446,-591.546905,0.000149,2]
[353759129,1740013859455,-591.546905,0.000149,2]
[353759130,1740013859465,-591.546905,0.000149,2]
[353759131,1740013859475,-591.546905,0.000149,2]
[353759132,1740013859485,-500.0,0.000149,2]
[353759133,1740013859494,-500.0,0.000149,2]
[353759134,1740013859504,-500.0,0.000149,2]
[353759135,1740013859514,-500.0,0.000149,2]
[353759136,1740013859525,-500.0,0.000149,2]
[353759137,1740013859535,-500.0,0.000149,2]
[353759138,1740013859544,-500.0,0.000149,2]
[353759139,1740013859554,-500.0,0.000149,2]
[353759140,1740013859564,-500.0,0.000149,2]
[353759141,1740013859574,-501.17448677,0.000149,2]
[353759142,1740013859584,-500.0,0.000149,2]
[353759143,1740013859593,-500.0,0.000149,2]
[353759144,1740013859603,-500.0,0.000149,2]
[353759145,1740013859613,-500.0,0.000149,2]
[353759146,1740013859623,-500.0,0.000149,2]
[353759147,1740013859633,-500.0,0.000149,2]
[353759148,1740013859642,-500.0,0.000149,2]
[353759149,1740013859652,-500.0,0.000149,2]
[353759150,1740013859661,-266.0,0.000149,2]
[353759151,1740013859671,-151.0,0.000149,2]
[353759152,1740013859683,-2365.398833,0.000149,2]
[353759153,1740013859692,-2365.398833,0.000149,2]
[353759154,1740013859702,-450.0,0.000149,2]
[353759155,1740013859711,-450.0,0.000149,2]
[353759156,1740013859721,-151.0,0.000149,2]
[353759157,1740013859730,-450.0,0.000149,2]
[353759158,1740013859740,-450.0,0.000149,2]
[353759159,1740013859750,-151.0,0.000149,2]
[353759160,1740013859760,-179.304951,0.000149,2]
[353759161,1740013859770,-179.304951,0.000149,2]
[353759162,1740013859779,-612.608067,0.000149,2]
[353759163,1740013859789,-1155.303409,0.000149,2]
[353759164,1740013859798,-612.608067,0.000149,2]
[353759165,1740013859807,-1155.303409,0.000149,2]
[353759166,1740013859817,-1391.96241,0.000149,2]
[353759167,1740013859827,-1391.96241,0.000149,2]
[353759168,1740013859836,-5576.715687,0.000149,2]
[353759169,1740013859846,-1391.96241,0.000149,2]
[353759170,1740013859856,-1391.96241,0.000149,2]
[353759171,1740013859865,-5576.715687,0.000149,2]
[353759172,1740013859875,-151.0,0.000149,2]
[353759173,1740013859884,-151.0,0.000149,2]
[353759174,1740013859894,-857.48366,0.000149,2]
[353759175,1740013859903,-857.48366,0.000149,2]
[353759176,1740013859913,-857.48366,0.000149,2]
[353759177,1740013859923,-857.48366,0.000149,2]
[353759178,1740013859933,-519.17707,0.000149,2]
[353759179,1740013859942,-519.17707,0.000149,2]
[353759180,1740013859952,-519.17707,0.000149,2]
[353759181,1740013859961,-519.17707,0.000149,2]
[353759182,1740013859971,-379.20285,0.000149,2]
[353759183,1740013859980,-379.20285,0.000149,2]
[353759184,1740013859990,-379.20285,0.000149,2]
[353759185,1740013860000,-379.20285,0.000149,2]
[353759186,1740013860010,-1049.066856,0.000149,2]
[353759187,1740013860020,-1049.066856,0.000149,2]
[353759188,1740013860030,-1049.066856,0.000149,2]
[353759189,1740013860040,-1049.066856,0.000149,2]
[353759190,1740013860050,-691.309199,0.000149,2]
[353759191,1740013860061,-691.309199,0.000149,2]
[353759192,1740013860071,-691.309199,0.000149,2]
[353759193,1740013860081,-691.309199,0.000149,2]
[353759194,1740013860091,-151.0,0.000149,2]
[353759195,1740013860101,-4040.729746,0.000149,2]
[353759196,1740013860111,-977.592803,0.000149,2]
[353759197,1740013860121,-4040.729746,0.000149,2]
[353759198,1740013860131,-151.0,0.000149,2]
[353759199,1740013860140,-977.592803,0.000149,2]
[353759200,1740013860150,-934.0,0.000149,2]
[353759201,1740013860160,-251.537168,0.000149,2]
[353759202,1740013860170,-251.537168,0.000149,2]
[353759203,1740013860179,-185388.08392191,0.000149,2]
[353759204,1740013860288,-760.63739624,0.000149,2]
[353759205,1740013860427,-500.0,0.00013698,2]
[353759206,1740013860438,-500.0,0.0001378,2]
[353759207,1740013860448,-500.0,0.0001378,2]
[353759208,1740013860458,-500.0,0.00013863,2]
[353759209,1740013860467,-500.0,0.00013863,2]
[353759210,1740013860477,-500.0,0.00013945,2]
[353759211,1740013860486,-500.0,0.00013945,2]
[353759212,1740013860496,-500.0,0.00014027,2]
[353759213,1740013860505,-500.0,0.00014027,2]
[353759214,1740013860515,-500.0,0.00014109,2]
[353759215,1740013860525,-1205.797181,0.00014109,2]
[353759216,1740013860534,-500.0,0.00014109,2]
[353759217,1740013860544,-500.0,0.00014191,2]
[353759218,1740013860553,-500.0,0.00014191,2]
[353759219,1740013860563,-500.0,0.00014273,2]
[353759220,1740013860573,-1205.797181,0.00014273,2]
[353759221,1740013860582,-500.0,0.00014273,2]
[353759222,1740013860592,-500.0,0.00014356,2]
[353759223,1740013860601,-500.0,0.00014356,2]
[353759224,1740013860610,-500.0,0.00014438,2]
[353759225,1740013860619,-500.0,0.0001452,2]
[353759226,1740013860629,-500.0,0.00014602,2]
[353759227,1740013860640,-229340.22505317,0.000149,2]
[353759228,1740013860983,-500.0,0.00014438,2]
[353759229,1740013860992,-500.0,0.0001452,2]
[353759230,1740013861001,-1205.797181,0.00014563,2]
[353759231,1740013861010,-500.0,0.00014602,2]
[353759232,1740013861019,-500.0,0.00014684,2]
[353759233,1740013861028,-1205.797181,0.00014684,2]
[353759234,1740013861038,-500.0,0.00014684,2]
[353759235,1740013861048,-557.1188801,0.00014712,2]
[353759236,1740013861057,-500.0,0.00014767,2]
[353759237,1740013861067,-500.0,0.00014767,2]
[353759238,1740013861076,-500.0,0.00014849,2]
[353759239,1740013861085,-1205.797181,0.00014849,2]
[353759240,1740013861094,-151.65100684,0.00014849,2]
[353759241,1740013861104,-201221.61934268,0.000149,2]
[353759242,1740013861114,-807.958279,0.000149,2]
[353759243,1740013861123,-807.958279,0.000149,2]
[353759244,1740013861132,-1352.71955,0.000149,2]
[353759245,1740013861142,-807.958279,0.000149,2]
[353759246,1740013861151,-807.958279,0.000149,2]
[353759247,1740013861160,-1352.71955,0.000149,2]
[353759248,1740013861169,-2541.082803,0.000149,2]
[353759249,1740013861178,-2541.082803,0.000149,2]
[353759250,1740013861188,-2541.082803,0.000149,2]
[353759251,1740013861197,-2541.082803,0.000149,2]
[353759252,1740013861206,-627.264385,0.000149,2]
[353759253,1740013861215,-627.264385,0.000149,2]
[353759254,1740013861225,-627.264385,0.000149,2]
[353759255,1740013861234,-627.264385,0.000149,2]
[353759256,1740013861244,-151.0,0.000149,2]
[353759257,1740013861253,-537.887263,0.000149,2]
[353759258,1740013861263,-537.887263,0.000149,2]
[353759259,1740013861272,-1167.085957,0.000149,2]
[353759260,1740013861281,-1167.085957,0.000149,2]
[353759261,1740013861291,-1167.085957,0.000149,2]
[353759262,1740013861300,-1167.085957,0.000149,2]
[353759263,1740013861311,-151.0,0.000149,2]
[353759264,1740013861321,-1022.629881,0.000149,2]
[353759265,1740013861331,-1022.629881,0.000149,2]
[353759266,1740013861340,-196.366296,0.000149,2]
[353759267,1740013861350,-196.366296,0.000149,2]
[353759268,1740013861359,-1205.797181,0.000149,2]
[353759269,1740013861368,-1205.797181,0.000149,2]
[353759270,1740013861378,-500.0,0.00014931,2]
[353759271,1740013861388,-636.42,0.00014931,2]
[353759272,1740013861398,-401.66539594,0.00014931,2]
[353759273,1740013861407,-500.0,0.00014931,2]
[353759274,1740013861416,-160.62562072,0.00014931,2]
[353759275,1740013861426,-500.0,0.00014931,2]
[353759276,1740013861435,-150.27,0.00014931,2]
[353759277,1740013861445,-150.27,0.00014931,2]
[353759278,1740013861454,-150.27,0.00014931,2]
[353759279,1740013861464,-150.31097465,0.00014931,2]
[353759280,1740013861474,-17094.74,0.00014931,2]
[353759281,1740013861483,-582.87,0.00014931,2]
[353759282,1740013861493,-500.0,0.00014931,2]
[353759283,1740013861503,-620.06,0.00014931,2]
[353759284,1740013861512,-500.0,0.00014931,2]
[353759285,1740013861522,-935.39,0.00014931,2]
[353759286,1740013861531,-786.27,0.00014931,2]
[353759287,1740013861541,-150.27,0.00014931,2]
[353759288,1740013861551,-1339.64,0.00014931,2]
[353759289,1740013861560,-500.0,0.00014931,2]
[353759290,1740013861570,-500.0,0.00014931,2]
[353759291,1740013861579,-150.27,0.00014931,2]
[353759292,1740013861589,-150.27,0.00014931,2]
[353759293,1740013861599,-2415.0,0.00014931,2]
[353759294,1740013861608,-909.0,0.00014931,2]
[353759295,1740013861618,-602.0,0.00014931,2]
[353759296,1740013861627,-150.27,0.00014931,2]
[353759297,1740013861637,-500.0,0.00014931,2]
[353759298,1740013861647,-500.0,0.00014931,2]
[353759299,1740013861658,-1594.37,0.00014931,2]
[353759300,1740013861668,-838.74,0.00014931,2]
[353759301,1740013861679,-564.93999994,0.00014931,2]
[353759302,1740013861689,-1322.35,0.00014931,2]
[353759303,1740013861699,-500.0,0.00014931,2]
[353759304,1740013861709,-739.3,0.00014931,2]
[353759305,1740013861719,-720.36,0.00014931,2]
[353759306,1740013861728,-6999.65,0.00014931,2]
[353759307,1740013861737,-500.0,0.00014931,2]
[353759308,1740013861746,-504.63,0.00014931,2]
[353759309,1740013861757,-609.45,0.00014931,2]
[353759310,1740013861767,-1837.95,0.00014931,2]
[353759311,1740013861778,-1607.47,0.00014931,2]
[353759312,1740013861789,-580.19,0.00014931,2]
[353759313,1740013861799,-1981.68,0.00014931,2]
[353759314,1740013861809,-5345.53,0.00014931,2]